[Event "Titled Tuesday Blitz November 01 Early 2022"]
[White "Barria Zuniga, Daniel"]
[Black "Kanyamarala, Tarun"]
[WhiteFideId "3400816"]
[BlackFideId "45004714"]
[WhiteElo "2414"]
[BlackElo "2307"]
[Result "1-0"]
[Round "07"]
[TimeControl "180+1"]
[Date "2022.11.02"]
[WhiteClock "0:01:46"]
[BlackClock "0:01:11"]

1. c4 {[%clk 0:03:00]}  f5 {[%clk 0:02:55]} 2. g3 {[%clk 0:02:59]}  Nf6 {[%clk 0:02:55]} 3. Bg2 {[%clk 0:03:00]}  g6 {[%clk 0:02:56]} 4. Nf3 {[%clk 0:03:00]}  Bg7 {[%clk 0:02:56]} 5. O-O {[%clk 0:03:01]}  O-O {[%clk 0:02:56]} 6. d4 {[%clk 0:03:01]}  d6 {[%clk 0:02:57]} 7. b4 {[%clk 0:03:01]}  a5 {[%clk 0:02:46]} 8. b5 {[%clk 0:03:01]}  e5 {[%clk 0:02:44]} 9. e3 {[%clk 0:02:53]}  e4 {[%clk 0:02:38]} 10. Nfd2 {[%clk 0:02:50]}  c6 {[%clk 0:02:38]} 11. a4 {[%clk 0:02:50]}  Be6 {[%clk 0:02:29]} 12. Ba3 {[%clk 0:02:48]}  Re8 {[%clk 0:02:27]} 13. Nc3 {[%clk 0:02:47]}  Bf7 {[%clk 0:02:25]} 14. Rb1 {[%clk 0:02:42]}  Bf8 {[%clk 0:02:24]} 15. f3 {[%clk 0:02:39]}  exf3 {[%clk 0:02:22]} 16. Qxf3 {[%clk 0:02:40]}  Bh6 {[%clk 0:02:04]} 17. Rfe1 {[%clk 0:02:35]}  Ng4 {[%clk 0:02:03]} 18. Nf1 {[%clk 0:02:33]}  Bxc4 {[%clk 0:02:01]} 19. e4 {[%clk 0:02:26]}  Bxf1 {[%clk 0:01:59]} 20. Bxf1 {[%clk 0:02:24]}  Bd2 {[%clk 0:01:37]} 21. Bc4+ {[%clk 0:02:16]}  Kg7 {[%clk 0:01:37]} 22. Re2 {[%clk 0:02:15]}  Bxc3 {[%clk 0:01:28]} 23. Qxc3 {[%clk 0:02:14]}  d5 {[%clk 0:01:27]} 24. exd5 {[%clk 0:02:07]}  Rxe2 {[%clk 0:01:26]} 25. Bxe2 {[%clk 0:01:59]}  cxd5 {[%clk 0:01:21]} 26. Bxg4 {[%clk 0:01:48]}  fxg4 {[%clk 0:01:22]} 27. Re1 {[%clk 0:01:48]}  Nd7 {[%clk 0:01:20]} 28. Re7+ {[%clk 0:01:48]}  Kg8 {[%clk 0:01:20]} 29. Qe3 {[%clk 0:01:47]}  Nf6 {[%clk 0:01:11]} 30. Qe6+ {[%clk 0:01:46]} 1-0


[Site "https://www.chess.com"]

[Event "Titled Tuesday Blitz November 01 Early 2022"]
[White "Beerdsen, Thomas"]
[Black "Belozerov, Andrei"]
[WhiteFideId "1030108"]
[BlackFideId "4120213"]
[WhiteElo "2567"]
[BlackElo "2360"]
[Result "0-1"]
[Round "07"]
[TimeControl "180+1"]
[Date "2022.11.01"]
[WhiteClock "0:00:55"]
[BlackClock "0:00:17"]

1. e4 {[%clk 0:03:00]}  c6 {[%clk 0:02:59]} 2. d4 {[%clk 0:02:58]}  d5 {[%clk 0:02:59]} 3. f3 {[%clk 0:02:59]}  e6 {[%clk 0:02:53]} 4. Nc3 {[%clk 0:02:57]}  Bb4 {[%clk 0:02:51]} 5. Bd3 {[%clk 0:02:55]}  dxe4 {[%clk 0:02:44]} 6. fxe4 {[%clk 0:02:56]}  Qxd4 {[%clk 0:02:37]} 7. Bd2 {[%clk 0:02:55]}  Bc5 {[%clk 0:02:31]} 8. Qe2 {[%clk 0:02:52]}  Nf6 {[%clk 0:02:22]} 9. Nf3 {[%clk 0:02:51]}  Qd8 {[%clk 0:02:18]} 10. e5 {[%clk 0:02:50]}  Nd5 {[%clk 0:02:18]} 11. Ne4 {[%clk 0:02:51]}  Be7 {[%clk 0:02:14]} 12. O-O-O {[%clk 0:02:52]}  b5 {[%clk 0:02:07]} 13. Kb1 {[%clk 0:02:49]}  Na6 {[%clk 0:02:03]} 14. h4 {[%clk 0:02:45]}  Nc5 {[%clk 0:01:50]} 15. Bg5 {[%clk 0:02:40]}  Nxe4 {[%clk 0:01:48]} 16. Bxe4 {[%clk 0:02:36]}  h6 {[%clk 0:01:44]} 17. Bxe7 {[%clk 0:02:34]}  Qxe7 {[%clk 0:01:44]} 18. Nd4 {[%clk 0:02:35]}  Bb7 {[%clk 0:01:42]} 19. Qg4 {[%clk 0:02:33]}  O-O-O {[%clk 0:01:34]} 20. Qg3 {[%clk 0:02:25]}  a6 {[%clk 0:01:30]} 21. Rc1 {[%clk 0:02:16]}  c5 {[%clk 0:01:28]} 22. Ne2 {[%clk 0:02:06]}  Kb8 {[%clk 0:00:58]} 23. c4 {[%clk 0:02:02]}  Nb4 {[%clk 0:00:53]} 24. Bxb7 {[%clk 0:01:48]}  Qxb7 {[%clk 0:00:53]} 25. Nc3 {[%clk 0:01:49]}  bxc4 {[%clk 0:00:47]} 26. Ka1 {[%clk 0:01:46]}  Rd2 {[%clk 0:00:45]} 27. Qxg7 {[%clk 0:01:31]}  Rhd8 {[%clk 0:00:43]} 28. Na4 {[%clk 0:01:20]}  Nxa2 {[%clk 0:00:22]} 29. Kxa2 {[%clk 0:00:59]}  Qb3+ {[%clk 0:00:21]} 30. Kb1 {[%clk 0:00:59]}  Qxa4 {[%clk 0:00:20]} 31. Qxh6 {[%clk 0:00:55]}  Qb3 {[%clk 0:00:17]} 0-1


[Site "https://www.chess.com"]

[Event "Titled Tuesday Blitz November 01 Early 2022"]
[White "Bilan, Danila"]
[Black "Goh, Zi Han"]
[WhiteFideId "24161918"]
[BlackFideId "5819156"]
[WhiteElo "2203"]
[BlackElo "2026"]
[Result "1-0"]
[Round "07"]
[TimeControl "180+1"]
[Date "2022.11.02"]
[WhiteClock "0:00:09"]
[BlackClock "0:00:05"]

1. d4 {[%clk 0:02:54]}  Nf6 {[%clk 0:02:59]} 2. Nf3 {[%clk 0:02:54]}  d5 {[%clk 0:02:57]} 3. c4 {[%clk 0:02:54]}  c6 {[%clk 0:02:57]} 4. Nc3 {[%clk 0:02:53]}  e6 {[%clk 0:02:58]} 5. Bg5 {[%clk 0:02:53]}  Nbd7 {[%clk 0:02:56]} 6. cxd5 {[%clk 0:02:53]}  exd5 {[%clk 0:02:52]} 7. e3 {[%clk 0:02:53]}  Be7 {[%clk 0:02:53]} 8. Bd3 {[%clk 0:02:53]}  O-O {[%clk 0:02:51]} 9. Qc2 {[%clk 0:02:50]}  Re8 {[%clk 0:02:48]} 10. O-O {[%clk 0:02:50]}  Nf8 {[%clk 0:02:38]} 11. Rab1 {[%clk 0:02:48]}  a5 {[%clk 0:02:37]} 12. a3 {[%clk 0:02:48]}  Be6 {[%clk 0:02:29]} 13. b4 {[%clk 0:02:45]}  axb4 {[%clk 0:02:30]} 14. axb4 {[%clk 0:02:46]}  Ra3 {[%clk 0:02:08]} 15. b5 {[%clk 0:02:24]}  Qa5 {[%clk 0:02:00]} 16. Rfc1 {[%clk 0:02:14]}  Rc8 {[%clk 0:01:26]} 17. Qb2 {[%clk 0:01:29]}  cxb5 {[%clk 0:01:18]} 18. Nxb5 {[%clk 0:00:10]}  Rxc1+ {[%clk 0:01:16]} 19. Qxc1 {[%clk 0:00:06]}  Rxd3 {[%clk 0:01:15]} 20. Ne5 {[%clk 0:00:06]}  Rd2 {[%clk 0:00:51]} 21. Nc3 {[%clk 0:00:05]}  Ra2 {[%clk 0:00:32]} 22. Nxa2 {[%clk 0:00:05]}  Qxa2 {[%clk 0:00:32]} 23. Rxb7 {[%clk 0:00:06]}  Ba3 {[%clk 0:00:22]} 24. Qb1 {[%clk 0:00:03]}  Qxb1+ {[%clk 0:00:18]} 25. Rxb1 {[%clk 0:00:04]}  Ne4 {[%clk 0:00:17]} 26. Bf4 {[%clk 0:00:04]}  f6 {[%clk 0:00:14]} 27. Nf3 {[%clk 0:00:03]}  g5 {[%clk 0:00:14]} 28. Bc7 {[%clk 0:00:04]}  Be7 {[%clk 0:00:12]} 29. h3 {[%clk 0:00:03]}  Kf7 {[%clk 0:00:11]} 30. Rb7 {[%clk 0:00:04]}  Nd7 {[%clk 0:00:06]} 31. Ne1 {[%clk 0:00:03]}  h5 {[%clk 0:00:06]} 32. Nd3 {[%clk 0:00:03]}  Bd6 {[%clk 0:00:05]} 33. Ba5 {[%clk 0:00:03]}  g4 {[%clk 0:00:04]} 34. hxg4 {[%clk 0:00:03]}  hxg4 {[%clk 0:00:05]} 35. Bb4 {[%clk 0:00:04]}  Bxb4 {[%clk 0:00:04]} 36. Nxb4 {[%clk 0:00:05]}  Kg6 {[%clk 0:00:04]} 37. Nd3 {[%clk 0:00:05]}  Nf8 {[%clk 0:00:04]} 38. Rb6 {[%clk 0:00:04]}  Bf7 {[%clk 0:00:04]} 39. Nf4+ {[%clk 0:00:04]}  Kg7 {[%clk 0:00:04]} 40. Rb5 {[%clk 0:00:05]}  Nd6 {[%clk 0:00:03]} 41. Rb6 {[%clk 0:00:05]}  Nc4 {[%clk 0:00:02]} 42. Rb7 {[%clk 0:00:04]}  Nd6 {[%clk 0:00:02]} 43. Ra7 {[%clk 0:00:04]}  Nc4 {[%clk 0:00:02]} 44. Nxd5 {[%clk 0:00:03]}  Kg6 {[%clk 0:00:02]} 45. Nf4+ {[%clk 0:00:04]}  Kg7 {[%clk 0:00:01]} 46. Nh5+ {[%clk 0:00:04]}  Kg8 {[%clk 0:00:02]} 47. Nxf6+ {[%clk 0:00:04]}  Kg7 {[%clk 0:00:02]} 48. Nxg4 {[%clk 0:00:04]}  Ne6 {[%clk 0:00:02]} 49. Ne5 {[%clk 0:00:03]}  Nd6 {[%clk 0:00:02]} 50. Nxf7 {[%clk 0:00:03]}  Nxf7 {[%clk 0:00:03]} 51. f3 {[%clk 0:00:02]}  Kf6 {[%clk 0:00:03]} 52. Kf2 {[%clk 0:00:03]}  Neg5 {[%clk 0:00:03]} 53. Ra6+ {[%clk 0:00:03]}  Ke7 {[%clk 0:00:02]} 54. g4 {[%clk 0:00:04]}  Kf8 {[%clk 0:00:03]} 55. Kg3 {[%clk 0:00:05]}  Kg7 {[%clk 0:00:02]} 56. e4 {[%clk 0:00:05]}  Nh7 {[%clk 0:00:01]} 57. e5 {[%clk 0:00:05]}  Nf8 {[%clk 0:00:01]} 58. f4 {[%clk 0:00:05]}  Ng6 {[%clk 0:00:01]} 59. d5 {[%clk 0:00:06]}  Ngxe5 {[%clk 0:00:01]} 60. fxe5 {[%clk 0:00:06]}  Nxe5 {[%clk 0:00:02]} 61. Kf4 {[%clk 0:00:06]}  Nf7 {[%clk 0:00:01]} 62. Ra7 {[%clk 0:00:06]}  Kf8 {[%clk 0:00:01]} 63. Rxf7+ {[%clk 0:00:06]}  Kxf7 {[%clk 0:00:02]} 64. Ke5 {[%clk 0:00:07]}  Kg6 {[%clk 0:00:02]} 65. d6 {[%clk 0:00:07]}  Kg5 {[%clk 0:00:03]} 66. d7 {[%clk 0:00:08]}  Kxg4 {[%clk 0:00:04]} 67. d8=Q {[%clk 0:00:09]}  Kh5 {[%clk 0:00:04]} 68. Qg8 {[%clk 0:00:09]}  Kh6 {[%clk 0:00:05]} 69. Kf4 {[%clk 0:00:09]} 1-0


[Site "https://www.chess.com"]

[Event "Titled Tuesday Blitz November 01 Early 2022"]
[White "Bluebaum, Matthias"]
[Black "Orozbaev, Eldiar"]
[WhiteFideId "24651516"]
[BlackFideId "13802240"]
[WhiteElo "2633"]
[BlackElo "2244"]
[Result "0-1"]
[Round "07"]
[TimeControl "180+1"]
[Date "2022.11.01"]
[WhiteClock "0:00:44"]
[BlackClock "0:01:38"]

1. d4 {[%clk 0:03:00]}  Nf6 {[%clk 0:02:59]} 2. c4 {[%clk 0:03:00]}  e6 {[%clk 0:02:59]} 3. Nc3 {[%clk 0:02:59]}  d5 {[%clk 0:03:00]} 4. cxd5 {[%clk 0:02:59]}  exd5 {[%clk 0:03:01]} 5. Bg5 {[%clk 0:02:59]}  Be7 {[%clk 0:03:01]} 6. e3 {[%clk 0:03:00]}  O-O {[%clk 0:03:01]} 7. Bd3 {[%clk 0:03:01]}  c6 {[%clk 0:03:02]} 8. h3 {[%clk 0:02:59]}  Re8 {[%clk 0:03:02]} 9. Qc2 {[%clk 0:02:59]}  h6 {[%clk 0:03:02]} 10. Bf4 {[%clk 0:02:59]}  b6 {[%clk 0:03:02]} 11. Nf3 {[%clk 0:02:59]}  Na6 {[%clk 0:03:03]} 12. a3 {[%clk 0:02:59]}  Bb7 {[%clk 0:03:02]} 13. O-O {[%clk 0:02:59]}  Nc7 {[%clk 0:03:03]} 14. Rac1 {[%clk 0:02:59]}  Ne6 {[%clk 0:03:03]} 15. Bh2 {[%clk 0:02:59]}  Rc8 {[%clk 0:03:04]} 16. b4 {[%clk 0:02:58]}  Bd6 {[%clk 0:03:04]} 17. Ne5 {[%clk 0:02:58]}  Qe7 {[%clk 0:03:02]} 18. Qb3 {[%clk 0:02:56]}  Ng5 {[%clk 0:03:00]} 19. f3 {[%clk 0:02:53]}  c5 {[%clk 0:02:50]} 20. bxc5 {[%clk 0:02:53]}  bxc5 {[%clk 0:02:51]} 21. Bf5 {[%clk 0:02:51]}  Rb8 {[%clk 0:02:47]} 22. Qa4 {[%clk 0:02:44]}  cxd4 {[%clk 0:02:43]} 23. exd4 {[%clk 0:02:34]}  Bxa3 {[%clk 0:02:41]} 24. Rce1 {[%clk 0:02:11]}  Qb4 {[%clk 0:02:38]} 25. Rb1 {[%clk 0:01:48]}  Qxc3 {[%clk 0:02:32]} 26. Rb3 {[%clk 0:01:47]}  Qd2 {[%clk 0:02:10]} 27. Rxa3 {[%clk 0:01:41]}  Ba6 {[%clk 0:01:53]} 28. Nd3 {[%clk 0:00:52]}  Re2 {[%clk 0:01:44]} 29. Nf4 {[%clk 0:00:44]}  Rb2 {[%clk 0:01:38]} 0-1


[Site "https://www.chess.com"]

[Event "Titled Tuesday Blitz November 01 Early 2022"]
[White "Chan, Kim Yew"]
[Black "Silva Lucena, Cristian"]
[WhiteFideId "5717981"]
[BlackFideId "2232588"]
[WhiteElo "2206"]
[BlackElo "2223"]
[Result "1-0"]
[Round "07"]
[TimeControl "180+1"]
[Date "2022.11.02"]
[WhiteClock "0:00:02"]
[BlackClock "0:00:03"]

1. d4 {[%clk 0:03:00]}  Nf6 {[%clk 0:02:59]} 2. Bg5 {[%clk 0:03:00]}  d5 {[%clk 0:02:58]} 3. e3 {[%clk 0:02:59]}  c5 {[%clk 0:02:58]} 4. Bxf6 {[%clk 0:02:59]}  gxf6 {[%clk 0:02:58]} 5. dxc5 {[%clk 0:02:59]}  Qa5+ {[%clk 0:02:38]} 6. Nd2 {[%clk 0:02:34]}  Qxc5 {[%clk 0:02:35]} 7. Ngf3 {[%clk 0:02:28]}  Nc6 {[%clk 0:02:33]} 8. c4 {[%clk 0:02:27]}  d4 {[%clk 0:02:21]} 9. exd4 {[%clk 0:02:18]}  Nxd4 {[%clk 0:02:22]} 10. Be2 {[%clk 0:01:10]}  Rg8 {[%clk 0:02:15]} 11. Nxd4 {[%clk 0:00:28]}  Qxd4 {[%clk 0:02:03]} 12. O-O {[%clk 0:00:28]}  Bh6 {[%clk 0:00:59]} 13. Nf3 {[%clk 0:00:23]}  Qg4 {[%clk 0:00:36]} 14. g3 {[%clk 0:00:23]}  Qd7 {[%clk 0:00:22]} 15. Qb3 {[%clk 0:00:20]}  Qc7 {[%clk 0:00:20]} 16. Rfd1 {[%clk 0:00:18]}  Bg4 {[%clk 0:00:18]} 17. Qb5+ {[%clk 0:00:17]}  Kf8 {[%clk 0:00:17]} 18. Nd4 {[%clk 0:00:12]}  Bxe2 {[%clk 0:00:13]} 19. Nxe2 {[%clk 0:00:13]}  Rc8 {[%clk 0:00:13]} 20. b3 {[%clk 0:00:13]}  a6 {[%clk 0:00:12]} 21. Qf5 {[%clk 0:00:11]}  Rg5 {[%clk 0:00:08]} 22. Qxh7 {[%clk 0:00:10]}  Bg7 {[%clk 0:00:09]} 23. Nf4 {[%clk 0:00:07]}  Qxf4 {[%clk 0:00:08]} 24. Qd3 {[%clk 0:00:06]}  Qc7 {[%clk 0:00:08]} 25. Qe4 {[%clk 0:00:05]}  Re5 {[%clk 0:00:07]} 26. Qg4 {[%clk 0:00:04]}  Kg8 {[%clk 0:00:07]} 27. Rd7 {[%clk 0:00:04]}  Qc6 {[%clk 0:00:06]} 28. Rad1 {[%clk 0:00:03]}  Rg5 {[%clk 0:00:05]} 29. Rd8+ {[%clk 0:00:02]}  Rxd8 {[%clk 0:00:05]} 30. Rxd8+ {[%clk 0:00:03]}  Bf8 {[%clk 0:00:06]} 31. Qh4 {[%clk 0:00:01]}  Qc7 {[%clk 0:00:06]} 32. Ra8 {[%clk 0:00:01]}  Qe5 {[%clk 0:00:04]} 33. Qh6 {[%clk 0:00:01]}  Qe1+ {[%clk 0:00:03]} 34. Kg2 {[%clk 0:00:01]}  Qe4+ {[%clk 0:00:03]} 35. Kg1 {[%clk 0:00:02]}  Qb1+ {[%clk 0:00:03]} 36. Kg2 {[%clk 0:00:02]}  Rg7 {[%clk 0:00:04]} 37. Qf4 {[%clk 0:00:02]}  Qd3 {[%clk 0:00:03]} 38. Rxf8+ {[%clk 0:00:02]}  Kxf8 {[%clk 0:00:03]} 39. Qb8+ {[%clk 0:00:02]} 1-0


[Site "https://www.chess.com"]

[Event "Titled Tuesday Blitz November 01 Early 2022"]
[White "Chernomordik, Pavel"]
[Black "Vifleemskaia, Svetlana"]
[WhiteFideId "2804530"]
[BlackFideId "4129490"]
[WhiteElo "2217"]
[BlackElo "1929"]
[Result "1-0"]
[Round "07"]
[TimeControl "180+1"]
[Date "2022.11.02"]
[WhiteClock "0:00:31"]
[BlackClock "0:00:03"]

1. e4 {[%clk 0:02:53]}  e5 {[%clk 0:02:45]} 2. Nf3 {[%clk 0:02:52]}  Nc6 {[%clk 0:02:45]} 3. Bb5 {[%clk 0:02:51]}  a6 {[%clk 0:02:44]} 4. Ba4 {[%clk 0:02:51]}  Nf6 {[%clk 0:02:44]} 5. Qe2 {[%clk 0:02:50]}  b5 {[%clk 0:02:42]} 6. Bb3 {[%clk 0:02:50]}  Bc5 {[%clk 0:02:42]} 7. a4 {[%clk 0:02:49]}  Rb8 {[%clk 0:02:41]} 8. axb5 {[%clk 0:02:49]}  axb5 {[%clk 0:02:42]} 9. d3 {[%clk 0:02:49]}  O-O {[%clk 0:02:41]} 10. Bg5 {[%clk 0:02:47]}  h6 {[%clk 0:02:40]} 11. Bh4 {[%clk 0:02:46]}  Nd4 {[%clk 0:02:39]} 12. Nxd4 {[%clk 0:02:44]}  Bxd4 {[%clk 0:02:39]} 13. c3 {[%clk 0:02:44]}  Bc5 {[%clk 0:02:38]} 14. Nd2 {[%clk 0:02:43]}  Be7 {[%clk 0:02:38]} 15. O-O {[%clk 0:02:41]}  d6 {[%clk 0:02:35]} 16. h3 {[%clk 0:02:40]}  Nh7 {[%clk 0:02:34]} 17. Bxe7 {[%clk 0:02:33]}  Qxe7 {[%clk 0:02:33]} 18. Ra7 {[%clk 0:02:34]}  Rb7 {[%clk 0:02:25]} 19. Rfa1 {[%clk 0:02:33]}  Qd7 {[%clk 0:02:11]} 20. d4 {[%clk 0:02:27]}  c6 {[%clk 0:02:10]} 21. Ra8 {[%clk 0:02:19]}  Qc7 {[%clk 0:02:04]} 22. Nf3 {[%clk 0:02:13]}  Nf6 {[%clk 0:01:52]} 23. dxe5 {[%clk 0:02:12]}  dxe5 {[%clk 0:01:51]} 24. Qe3 {[%clk 0:02:12]}  c5 {[%clk 0:01:45]} 25. Rd1 {[%clk 0:01:38]}  Rb6 {[%clk 0:01:27]} 26. Bd5 {[%clk 0:01:26]}  Bb7 {[%clk 0:01:10]} 27. Rxf8+ {[%clk 0:01:22]}  Kxf8 {[%clk 0:01:10]} 28. Bxb7 {[%clk 0:01:19]}  Rxb7 {[%clk 0:01:08]} 29. Ra1 {[%clk 0:01:17]}  Kg8 {[%clk 0:00:55]} 30. Ra8+ {[%clk 0:01:12]}  Kh7 {[%clk 0:00:54]} 31. Nh4 {[%clk 0:01:13]}  g6 {[%clk 0:00:51]} 32. g4 {[%clk 0:01:03]}  Qd6 {[%clk 0:00:33]} 33. Nf3 {[%clk 0:00:58]}  Nd7 {[%clk 0:00:19]} 34. h4 {[%clk 0:00:44]}  Qe6 {[%clk 0:00:18]} 35. Nh2 {[%clk 0:00:40]}  Kg7 {[%clk 0:00:17]} 36. f3 {[%clk 0:00:37]}  Nf6 {[%clk 0:00:13]} 37. Nf1 {[%clk 0:00:36]}  Qd6 {[%clk 0:00:11]} 38. Ng3 {[%clk 0:00:35]}  b4 {[%clk 0:00:10]} 39. c4 {[%clk 0:00:34]}  Qd4 {[%clk 0:00:09]} 40. Kf2 {[%clk 0:00:34]}  Rd7 {[%clk 0:00:06]} 41. Ne2 {[%clk 0:00:33]}  Qxe3+ {[%clk 0:00:04]} 42. Kxe3 {[%clk 0:00:33]}  Ne8 {[%clk 0:00:03]} 43. Rxe8 {[%clk 0:00:31]} 1-0


[Site "https://www.chess.com"]

[Event "Titled Tuesday Blitz November 01 Early 2022"]
[White "Chernov, Mikhail"]
[Black "Lohani, Sujana"]
[WhiteFideId "24143170"]
[BlackFideId "12311987"]
[WhiteElo "2113"]
[BlackElo "1691"]
[Result "1-0"]
[Round "07"]
[TimeControl "180+1"]
[Date "2022.11.02"]
[WhiteClock "0:01:39"]
[BlackClock "0:00:01"]

1. e4 {[%clk 0:03:00]}  g6 {[%clk 0:02:56]} 2. d4 {[%clk 0:03:00]}  Bg7 {[%clk 0:02:55]} 3. Nc3 {[%clk 0:03:01]}  d6 {[%clk 0:02:54]} 4. Be3 {[%clk 0:03:01]}  e5 {[%clk 0:02:49]} 5. Nge2 {[%clk 0:02:59]}  Nc6 {[%clk 0:02:46]} 6. Qd2 {[%clk 0:02:58]}  exd4 {[%clk 0:02:35]} 7. Nxd4 {[%clk 0:02:58]}  Be6 {[%clk 0:02:23]} 8. Nxe6 {[%clk 0:02:54]}  fxe6 {[%clk 0:02:20]} 9. O-O-O {[%clk 0:02:53]}  Qf6 {[%clk 0:02:14]} 10. Bb5 {[%clk 0:02:50]}  Ne7 {[%clk 0:02:12]} 11. Bg5 {[%clk 0:02:44]}  Qe5 {[%clk 0:02:01]} 12. Bxe7 {[%clk 0:02:40]}  Kxe7 {[%clk 0:02:00]} 13. f4 {[%clk 0:02:40]}  Qc5 {[%clk 0:01:59]} 14. e5 {[%clk 0:02:18]}  Na5 {[%clk 0:01:07]} 15. Rhe1 {[%clk 0:02:12]}  d5 {[%clk 0:01:03]} 16. g4 {[%clk 0:02:04]}  a6 {[%clk 0:01:02]} 17. Bd3 {[%clk 0:02:03]}  b5 {[%clk 0:01:00]} 18. f5 {[%clk 0:02:02]}  exf5 {[%clk 0:00:28]} 19. gxf5 {[%clk 0:02:02]}  Kd8 {[%clk 0:00:09]} 20. f6 {[%clk 0:01:56]}  Bf8 {[%clk 0:00:08]} 21. e6 {[%clk 0:01:52]}  Bd6 {[%clk 0:00:02]} 22. e7+ {[%clk 0:01:46]}  Ke8 {[%clk 0:00:01]} 23. Nxd5 {[%clk 0:01:39]} 1-0


[Site "https://www.chess.com"]

[Event "Titled Tuesday Blitz November 01 Early 2022"]
[White "Clawitter, Craig"]
[Black "Najdin, Danil"]
[WhiteFideId "2023105"]
[BlackFideId "4172426"]
[WhiteElo "2295"]
[BlackElo "2240"]
[Result "0-1"]
[Round "07"]
[TimeControl "180+1"]
[Date "2022.11.02"]
[WhiteClock "0:00:01"]
[BlackClock "0:00:49"]

1. e4 {[%clk 0:03:00]}  g6 {[%clk 0:02:58]} 2. d4 {[%clk 0:03:00]}  c6 {[%clk 0:02:57]} 3. Nc3 {[%clk 0:03:00]}  d5 {[%clk 0:02:55]} 4. Be3 {[%clk 0:02:59]}  Bg7 {[%clk 0:02:55]} 5. Qd2 {[%clk 0:02:51]}  Nf6 {[%clk 0:02:38]} 6. Bh6 {[%clk 0:02:50]}  O-O {[%clk 0:02:28]} 7. e5 {[%clk 0:02:32]}  Ne4 {[%clk 0:02:27]} 8. Nxe4 {[%clk 0:02:31]}  dxe4 {[%clk 0:02:27]} 9. O-O-O {[%clk 0:02:24]}  c5 {[%clk 0:02:15]} 10. Bxg7 {[%clk 0:02:18]}  Kxg7 {[%clk 0:02:15]} 11. dxc5 {[%clk 0:02:18]}  Qc7 {[%clk 0:02:15]} 12. Qc3 {[%clk 0:01:59]}  Be6 {[%clk 0:02:13]} 13. Ne2 {[%clk 0:01:49]}  Nc6 {[%clk 0:02:05]} 14. Nf4 {[%clk 0:01:42]}  Qxe5 {[%clk 0:02:04]} 15. Nxe6+ {[%clk 0:01:15]}  fxe6 {[%clk 0:02:04]} 16. Qxe5+ {[%clk 0:01:13]}  Nxe5 {[%clk 0:02:05]} 17. Rd2 {[%clk 0:01:14]}  Ng4 {[%clk 0:02:01]} 18. Rd7 {[%clk 0:01:13]}  Rxf2 {[%clk 0:01:57]} 19. Rxb7 {[%clk 0:01:06]}  Rd8 {[%clk 0:01:53]} 20. Rxe7+ {[%clk 0:00:42]}  Kf6 {[%clk 0:01:53]} 21. Rxa7 {[%clk 0:00:35]}  Rdd2 {[%clk 0:01:42]} 22. Rb7 {[%clk 0:00:13]}  Ne3 {[%clk 0:01:33]} 23. Ba6 {[%clk 0:00:08]}  Rxc2+ {[%clk 0:01:19]} 24. Kb1 {[%clk 0:00:09]}  Nxg2 {[%clk 0:01:19]} 25. Rc1 {[%clk 0:00:07]}  Ne3 {[%clk 0:01:03]} 26. c6 {[%clk 0:00:06]}  Rxc1+ {[%clk 0:01:03]} 27. Kxc1 {[%clk 0:00:06]}  Rc2+ {[%clk 0:01:03]} 28. Kb1 {[%clk 0:00:07]}  Rxc6 {[%clk 0:01:04]} 29. b4 {[%clk 0:00:06]}  Rxa6 {[%clk 0:01:04]} 30. b5 {[%clk 0:00:06]}  Ra4 {[%clk 0:00:53]} 31. b6 {[%clk 0:00:02]}  Nd5 {[%clk 0:00:52]} 32. Rxh7 {[%clk 0:00:01]}  Nxb6 {[%clk 0:00:49]} 0-1


[Site "https://www.chess.com"]

[Event "Titled Tuesday Blitz November 01 Early 2022"]
[White "Csonka, Balazs"]
[Black "Horcajuelo Rocamora, Martin"]
[WhiteFideId "742910"]
[BlackFideId "24573027"]
[WhiteElo "2404"]
[BlackElo "2094"]
[Result "1-0"]
[Round "07"]
[TimeControl "180+1"]
[Date "2022.11.02"]
[WhiteClock "0:01:16"]
[BlackClock "0:02:00"]

1. c4 {[%clk 0:03:00]}  c5 {[%clk 0:02:56]} 2. Nf3 {[%clk 0:02:59]}  Nf6 {[%clk 0:02:56]} 3. Nc3 {[%clk 0:02:59]}  d5 {[%clk 0:02:57]} 4. cxd5 {[%clk 0:02:56]}  Nxd5 {[%clk 0:02:57]} 5. e3 {[%clk 0:02:54]}  Nc6 {[%clk 0:02:56]} 6. Bb5 {[%clk 0:02:52]}  Nc7 {[%clk 0:02:54]} 7. Bxc6+ {[%clk 0:02:48]}  bxc6 {[%clk 0:02:55]} 8. Qa4 {[%clk 0:02:37]}  Bd7 {[%clk 0:02:50]} 9. Ne5 {[%clk 0:02:34]}  Nb5 {[%clk 0:02:37]} 10. O-O {[%clk 0:02:18]}  e6 {[%clk 0:02:33]} 11. Qe4 {[%clk 0:01:52]}  Qc7 {[%clk 0:02:27]} 12. Nxb5 {[%clk 0:01:47]}  Qb8 {[%clk 0:02:26]} 13. Na3 {[%clk 0:01:40]}  Bd6 {[%clk 0:02:23]} 14. Nac4 {[%clk 0:01:37]}  Bc7 {[%clk 0:02:21]} 15. h3 {[%clk 0:01:28]}  f5 {[%clk 0:02:16]} 16. Nxd7 {[%clk 0:01:23]}  Kxd7 {[%clk 0:02:16]} 17. Qd3+ {[%clk 0:01:19]}  Ke7 {[%clk 0:02:16]} 18. b3 {[%clk 0:01:20]}  Rd8 {[%clk 0:02:15]} 19. Qe2 {[%clk 0:01:19]}  Kf7 {[%clk 0:02:04]} 20. Bb2 {[%clk 0:01:18]}  e5 {[%clk 0:02:00]} 21. Qh5+ {[%clk 0:01:16]} 1-0


[Site "https://www.chess.com"]